Cogmind - Beta 10.1 @@@ ROGUE MODE // 2020.09.25 @ 16:35:25 // Winter2019/RPGLIKE Player: HOTSOUP Result: Destroyed by G-47 Trooper with Particle Gun Performance ------------- Evolutions (1) 500 Regions Visited (2) 400 Robots Destroyed (8) 40 Value Destroyed (86) 86 Prototype IDs (4) 80 Alien Tech Used (0) 0 Bonus (0) 0 TOTAL SCORE: 1106 Bonus ------- None Cogmind --------- Core Integrity 0/600 Matter 268/300 Energy 100/100 System Corruption 0% Temperature Cool (9) Movement Core (50) Location -9/Materials Parts ------- > --- POWER (1) -------- (None) > --- PROPULSION (1) --- (None) > --- UTILITY (1) ------ Hacking Suite > --- WEAPON (1) ------- Mining Claw > --- INVENTORY (0) ---- (None) Peak State ------------ > --- POWER ------------ (None) > --- PROPULSION ------- Flight Unit > --- UTILITY ---------- Hacking Suite > --- WEAPON ----------- Mining Claw > --- INVENTORY -------- (None) [Rating: 5] Favorites ----------- Power None Propulsion Flight Unit Flight Unit Flight Unit Utility Hacking Suite Hackware Hacking Suite Weapon Mining Claw Energy Gun EM Pulse Gun Launcher Grenade Launcher Slashing Weapon Mining Claw Build | -11 -10 -9 ------- Run | Scr Mat Mat Slots Evolved . | . . . Power . | . . . Propulsion . | . . . Utility . | . . . Weapon . | . . . Parts Attached 5 | 1 4 . Power . | . . . Engine . | . . . Core . | . . . Reactor . | . . . Propulsion 1 | . 1 . Treads . | . . . Leg . | . . . Wheel . | . . . Hover . | . . . Flight 1 | . 1 . Utility 1 | . 1 . Device . | . . . Storage . | . . . Processor . | . . . Hackware 1 | . 1 . Protection . | . . . Artifact . | . . . Weapon 3 | 1 2 . Energy Gun 1 | 1 . . Energy Cannon . | . . . Ballistic Gun . | . . . Ballistic Cannon . | . . . Launcher 1 | . 1 . Special Weapon . | . . . Impact Weapon . | . . . Slashing Weapon 1 | . 1 . Piercing Weapon . | . . . Special Melee Weapon . | . . . Unidentified Prototypes . | . . . Parts Lost 1 | . . 1 Power . | . . . Propulsion 1 | . . 1 Utility . | . . . Weapon . | . . . Highest Loss Streak 1 | . . 1 Average Slot Usage (%) 51 | . 45 72 Flight 14 | . 12 22 Hackware 12 | . 8 25 Launcher 9 | . 12 . Slashing Weapon 14 | . 10 25 Naked Turns 4 | . 4 . Heaviest Build 3 | 2 3 2 Greatest Support 4 | 3 4 4 Greatest Overweight (x) . | . . . Average Overweight (x) . | . . . Largest Inventory Capacity . | . . . Average Capacity . | . . . Most Carried . | . . . Average Carried . | . . . Final Capacity . | . . . Final Carried . | . . . Class Distribution -------------------- 100% | Hacker-Mutant Dominant Class ---------------- Hacker-Mutant | -10/Materials Hacker-Mutant | -9/Materials Resources | -11 -10 -9 ----------- Run | Scr Mat Mat Matter Collected 243 | 187 56 . Remotely . | . . . Salvage Created 77 | . 56 21 Parts 16 | . 13 3 Haulers Intercepted . | . . . Recyclers Shooed . | . . . Parts Field Recycled . | . . . Retrieved Matter . | . . . Parts Self-Destructed . | . . . Prevented . | . . . Kills | -11 -10 -9 ------- Run | Scr Mat Mat Combat Hostiles Destroyed 7 | . 6 1 Melee 4 | . 3 1 AOE 3 | . 3 . Classes Destroyed 2 | . 2 . Operator 1 | . 1 . Swarmer 7 | . 6 1 Best Kill Streak 3 | . 3 1 Combat Bots Only 3 | . 3 1 Max Kills in Single Turn 2 | . 2 1 Gunslinging . | . . . Exploded 2 | . 2 . Melee 1 | . 1 1 Uniques/NPCs Destroyed . | . . . Combat | -11 -10 -9 -------- Run | Scr Mat Mat Damage Taken 718 | . 314 404 Core 666 | . 290 376 Absorbed by Shields . | . . . Redirected to Core 175 | . 81 94 Core Remaining (%) 80 | 100 60 . Volleys Fired 3 | . 3 . Largest 1 | . 1 . Hottest 30 | . 30 . Shots Fired 3 | . 3 . Gun . | . . . Cannon . | . . . Launcher 3 | . 3 . Special . | . . . Kinetic . | . . . Thermal . | . . . Explosive 3 | . 3 . Electromagnetic . | . . . Robot Hit Streak . | . . . Robot Miss Streak . | . . . Penetration Max . | . . . Secondary Targets . | . . . Shots Hit Robots 9 | . 8 1 Core Hits 8 | . 7 1 Critical Hits . | . . . Critical Kills . | . . . Critical Parts Destroyed . | . . . Melee Attacks 38 | . 25 13 Impact . | . . . Slashing 38 | . 25 13 Piercing . | . . . Sneak Attacks . | . . . Combat Hostiles . | . . . Follow-up Attacks . | . . . Damage Inflicted 429 | . 404 25 Guns . | . . . Cannons . | . . . Explosions 205 | . 205 . Melee 224 | . 199 25 Ramming . | . . . Kinetic . | . . . Thermal . | . . . Explosive 205 | . 205 . Electromagnetic . | . . . Impact . | . . . Slashing 224 | . 199 25 Piercing . | . . . Highest Corruption . | . . . Average Corruption . | . . . Corruption Purged . | . . . Overload Shots . | . . . Overflow Damage 6 | . 6 . Projectiles . | . . . Explosions . | . . . Melee 6 | . 6 . Knockbacks . | . . . Impact . | . . . Kinetic . | . . . Secondary . | . . . Self-Inflicted Damage . | . . . Shots . | . . . Rammed . | . . . Targets Rammed . | . . . Kicked . | . . . Crushed . | . . . Highest Temperature 5 | . 5 . Average Temperature 5 | . 5 . Received Heat Transfer 96 | . 12 84 Siege Activations . | . . . Robots Corrupted . | . . . Combat Hostiles . | . . . Parts Fried . | . . . Impact Corruptions . | . . . Robots Melted . | . . . Combat Hostiles . | . . . Parts Melted . | . . . Heat Transferred . | . . . Parts Sabotaged . | . . . Parts Stolen . | . . . Parts Stripped . | . . . Power Chain Reactions . | . . . Missiles Intercepted . | . . . Alert | -11 -10 -9 ------- Run | Scr Mat Mat Peak Influence 223 | . 223 68 Initial 9 | . . 9 Average 65 | . 76 41 Maximum Alert Level 1 | . 1 . Low Security (%) 92 | 100 90 100 Level 1 7 | . 9 . Level 2 . | . . . Level 3 . | . . . Level 4 . | . . . Level 5 . | . . . High Security . | . . . Max Security . | . . . Squads Dispatched 1 | . 1 . Investigation . | . . . Extermination . | . . . Reinforcement 1 | . 1 . Assault . | . . . Garrison . | . . . Intercept . | . . . Construction Impeded . | . . . Haulers Reinforced . | . . . Stealth | -11 -10 -9 --------- Run | Scr Mat Mat Distress Signals 2 | . 1 1 Communications Jammed . | . . . Distress Signals . | . . . Times Spotted 31 | . 15 16 Peak Tracking Total 12 | . 5 12 Tactical Retreats 6 | . 3 3 Traps | -11 -10 -9 ------- Run | Scr Mat Mat Traps Triggered . | . . . Indirectly . | . . . Trap Hack Attempts . | . . . Triggered . | . . . Disarmed . | . . . Reprogrammed . | . . . Reused . | . . . Traps Extracted . | . . . Installed . | . . . Triggered . | . . . Machines | -11 -10 -9 ---------- Run | Scr Mat Mat Machines Disabled . | . . . Max in Single Turn . | . . . Machines Sabotaged . | . . . Garrisons Compromised . | . . . Overloaded Fab Kills . | . . . Fab Network Shutdowns . | . . . Hacking | -11 -10 -9 --------- Run | Scr Mat Mat Machines Accessed 8 | . 5 3 Terminals 8 | . 5 3 Fabricators . | . . . Repair Stations . | . . . Recycling Units . | . . . Scanalyzers . | . . . Garrison Access . | . . . Total Hacks 38 | . 15 23 Successful 32 | . 14 18 Failed 6 | . 1 5 Catastrophic 1 | . . 1 Database Lockouts . | . . . Manual 23 | . 11 12 Terminals 38 | . 15 23 Fabricators . | . . . Repair Stations . | . . . Recycling Units . | . . . Scanalyzers . | . . . Garrison Access . | . . . Terminal Hacks 17 | . 5 12 Prototype ID Bank 2 | . 1 1 Emergency Access Points 1 | . . 1 Terminal Index 2 | . 1 1 Scanalyzer Index 1 | . . 1 Alert Level 1 | . . 1 Dispatch Records 1 | . . 1 Maintenance Status 1 | . . 1 Security Status 1 | . . 1 Surveillance Status 1 | . . 1 Patrol Status 1 | . . 1 Investigation Status 1 | . 1 . Reinforcement Status 1 | . 1 . Recall Reinforcements 1 | . . 1 Recall Assault 1 | . . 1 Zone Layout 1 | . 1 . Fabricator Hacks . | . . . Repair Station Hacks . | . . . Recycling Unit Hacks . | . . . Scanalyzer . | . . . Garrison Access Hacks . | . . . Unauthorized Hacks 15 | . 9 6 Terminals 15 | . 9 6 Track 4 | . 3 1 Assimilate 1 | . 1 . Botnet 8 | . 5 3 Disrupt 2 | . . 2 Fabricators . | . . . Repair Stations . | . . . Recycling Units . | . . . Scanalyzers . | . . . Garrison Access . | . . . Data Cores Recovered 1 | . 1 . Used 1 | . 1 . Hacking Detections 6 | . 5 1 Full Trace Events 2 | . 2 . Feedback Events . | . . . Feedback Blocked . | . . . Robot Schematics Acquired . | . . . Robots Built . | . . . Matter . | . . . Time . | . . . Total Robot Build Rating . | . . . Part Schematics Acquired . | . . . Parts Built . | . . . Matter . | . . . Time . | . . . Total Part Build Rating . | . . . Parts Repaired . | . . . Time . | . . . Parts Recycled . | . . . Recycled Matter . | . . . Retrieved Matter . | . . . Retrieved Components . | . . . Parts Scanalyzed . | . . . Part Schematics Acquired . | . . . Parts Damaged . | . . . Bothacking | -11 -10 -9 ------------ Run | Scr Mat Mat Used RIF Installer . | . . . Robots Hacked . | . . . Non-combat . | . . . Combat . | . . . Robot Hacks Applied . | . . . Relay Couplers Released . | . . . Robots Rewired . | . . . Allies Hacked . | . . . Hacks Repelled . | . . . Allies | -11 -10 -9 -------- Run | Scr Mat Mat Total Allies 1 | . 1 . Largest Group 1 | . 1 . Highest-Rated Group 10 | . 10 . Highest-Rated Ally 10 | . 10 . Total Orders 1 | . 1 . STAY 1 | . 1 . Ally Attacks . | . . . Total Damage . | . . . Kills . | . . . Allies Corrupted . | . . . Allies Melted . | . . . Intel | -11 -10 -9 ------- Run | Scr Mat Mat Robot Analysis Total . | . . . Derelict Logs Recovered . | . . . Drone Launches . | . . . Drone Recoveries . | . . . Exploration | -11 -10 -9 ------------- Run | Scr Mat Mat Turns Passed 553 | 22 411 120 Spaces Moved 640 | 40 425 175 Core 206 | 40 166 . Treads . | . . . Legs . | . . . Wheels . | . . . Hover . | . . . Flight 434 | . 259 175 Fastest Speed 40 | 50 40 40 Average Speed 43 | 50 43 40 Slowest Speed 50 | 50 50 40 Overloaded Moves . | . . . Propulsion Burnouts . | . . . Robots Hopped 1 | . . 1 Cave-ins Triggered . | . . . Exploration Rate (%) 29 | 3 57 28 Regions Visited 2 Branch Regions . Pre-discovered Areas . | . . . Known Exits Taken . | . . . Unknown Exits Taken 2 | 1 1 . Scrap Searched . | . . . Spaces Dug 14 | . 4 10 Terrain Destroyed 39 | . 29 10 Melee 14 | . 4 10 Projectile . | . . . AOE 25 | . 25 . Terrain Rammed . | . . . Walls Destroyed . | . . . Machines Disabled . | . . . Actions | -11 -10 -9 --------- Run | Scr Mat Mat Total 833 | 40 594 199 Wait 144 | . 132 12 Move 636 | 39 424 173 Hop 1 | . . 1 Pick Up . | . . . Fast Attach 5 | 1 4 . Attach . | . . . Detach . | . . . Swap . | . . . Drop 2 | . 2 . Fire 3 | . 3 . Melee 38 | . 25 13 Ram . | . . . Kick . | . . . Crush . | . . . Escape Stasis . | . . . Rewire . | . . . Trap . | . . . Miscellaneous 4 | . 4 . Route ------- -11/Scrapyard -10/Materials -9/Materials History --------- Turn | Location | Event 9 | -11/Scrapyard | Discovered new exit (range 14) 23 | -11/Scrapyard | Entered Materials 315 | -10/Materials | Build established: Hacker-Mutant 418 | -10/Materials | Discovered new exit (range 16) 434 | -10/Materials | Entered another Materials area 436 | -9/Materials | Reached level 2 500 | -9/Materials | Core integrity fell below 50% 534 | -9/Materials | Core integrity fell below 20% 554 | -9/Materials | Destroyed by G-47 Trooper with Particle Gun Last Messages --------------- Terminal linked with 2 systems. Awaiting botnet instructions. >>Trojan(Disrupt) Trojan loaded successfully. Testing... Disruption routine running. >>Recall(Reinforcements) Establishing remote squad link... No tasked reinforcement squads found. >>Recall(Assault) Establishing remote squad link... No tasked assault squads found. 00473_ C-30 ARC bursts open, deploying its payload. 00473_ G-47 Trooper unfolds itself. 00473_ G-34 Mercenary unfolds itself. 00500_ K-01 Serf collects debris. 00547_ Flight Unit destroyed. 00548_ K-01 Serf cleans the Terminal. 00552_ K-01 Serf collects debris. 00552_ S-10 Pest destroyed. Map ----- +----------------------------------------------------+ | ?????????????????????????????????????????? | | ?????????????????????????????????????????? | | ?????????????????????????????????????????? | | ?????????????????????????????????????????? | | ?????????????????????????????????????????? | | ?????????????????????????????????????????? | | ?????????????????????????????????????????? | | ?????????????????????????????????????????? | | ?????????????????????????????????????????? | | ????????????????????????????????????????? | | ????????????????????????????????????????? | | ????????????????????????????????????????? | | ????????????????????????????????????????? | | #????????????????????????????????????????? | | #????????????????????????????????????????? | | #????????????????????????????????????????? | | #????????????????????????????????????????? | | #????????????????????????????????????????? | | #????????????????????????????????????????? | | #????????????????????????????????????????? | | #####????????????????????????????????????? | | #???????????????????###########??????? | | #???????????????????# #??????? | | #?????????????????###*"" ######?? | | # #???????###########gg["T # #?? | | # #??????### "##@"" + #?? | | # ########"# ### """ # ??? | | # # ! #?# ks """ ? ??? | | # # [[= #?# """??# #??? | | # + ! [[= #?# s Y ?# #??? | | # # [[ #?#######+#### #??? | | # # #???????# #??# #??? | | # # ######### #### #??? | | # # + #??? | | # """ ###/######"####### #??? | | # """"" #?# #?# #?###### #??? | | # """"" #?# #?# """ ######## #??? | | # """"" #?# #?# """ # # #??? | | # """ ### ### """ # # #??? | | # ! + # #??? | | / """ " / #??? | | # """ # # #??? | | ##########+######### """ ! # # #??? | | ???????????????????# ######## #??? | | ???????????????????##########??????# #??? | | ???????????????????????????????????+ #??? | | ???????????????????????????????????# #??? | | ???????????????????????????????????# #??? | | ???????????????????????????????????# #??? | | ???????????????????????????????????? #??? | +----------------------------------------------------+ Best States ------------- Heat Dissipation 25 Energy Generation 5 Energy Capacity 100 Matter Stores 277 Matter Capacity 300 Sight Range 16 Terrain Scan Density 10 Evasion (%) 62 Offensive Hacking 35 Defensive Hacking 15 Item Schematics ----------------- None Robot Schematics ------------------ None Fabricated ------------ Nothing Alien Tech Used ----------------- None Achievements -------------- None Challenges ------------ None RPGLIKE | -11 -10 -9 --------- Run | Scr Mat Mat Levels Raised 1 | . . 1 XP Earned 5300 | 3000 700 1600 XP Spent 4500 | 3000 . 1500 Upgrades 8 | 5 . 3 Hack Attack % 5 | 5 . . Hack Defense % 3 | . . 3 Protomatter Created 19 | . 19 . Integrity Restored 54 | . 54 . Core 54 | . 54 . Protomatter Decayed . | . . . Game ------ Seed PortableMassRedirector Manual? 0 Play Time 00:17:56 Cumulative 61.5 hours Start 2020.09.25 @ 16:21:29 End 2020.09.25 @ 16:35:25 Sessions 1 Manual Loads 0 Difficulty Rogue Special Mode Winter2019/RPGLIKE Game No. 80 Rogue 57 Adventurer 22 Explorer 1 Win Type - Total 1 Types 1/0/0/0/0/0/0/0/0 Lore% 34 Gallery% 44 Achievement% 35 Wizard Run 0 Options --------- ASCII 0 Keyboard 0 Movement Numpad Keybinds 0 Fullscreen 1 Font 14/SmallcapsGlow Map View 84x54 Tactical HUD 1 Map Filters NONE Filters NONE Steam 1 RUN: 4eb2bdf8-4d0b-4409-9f35-3773e4a3ead7